bitfinex/quotes_SOLUSD_20250710
["timestamp","ask_amount","ask_price","bid_price","bid_amount"]
[1752161654581,178.08133363,156.71,156.68,0.72]
[1752161654880,171.7,156.71,156.68,7.5672136]
[1752161655043,32.38127108,156.71,156.68,7.5672136]
[1752161655375,26.0,156.71,156.69,0.72]
[1752161655681,26.0,156.71,156.7,0.72]
[1752161656775,32.3812137,156.71,156.7,0.72]
[1752161656985,39.2284273,156.71,156.69,0.72]
[1752161657971,32.3812137,156.71,156.69,0.72]
[1752161658275,39.2284273,156.71,156.69,0.72]
[1752161659565,33.0512137,156.71,156.67,0.72]
[1752161659763,6.8472136,156.7,156.68,0.72]
[1752161663045,13.22900189,156.7,156.68,0.72]
[1752161663252,6.8472136,156.69,156.68,0.72]
[1752161663467,7.5172136,156.69,156.66,0.06]
[1752161663657,6.8472136,156.67,156.66,0.06]
[1752161664576,6.8472136,156.68,156.66,0.06]
[1752161664875,6.8472136,156.68,156.66,0.78]
[1752161665378,13.22980247,156.68,156.66,0.78]
[1752161666480,6.38258887,156.68,156.66,0.78]
[1752161666666,13.22980247,156.68,156.66,0.78]
[1752161666978,13.89980247,156.68,156.66,0.06]
[1752161670079,24.30189757,156.67,156.66,0.06]
[1752161671762,23.83752688,156.67,156.66,0.06]
[1752161671962,30.68474048,156.67,156.66,0.06]
[1752161672476,30.01474048,156.67,156.66,0.06]
[1752161672682,30.68474048,156.67,156.66,0.06]
[1752161674979,30.01474048,156.67,156.66,0.06]
[1752161675369,30.68474048,156.67,156.66,0.06]
[1752161682585,30.01474048,156.67,156.66,0.06]
[1752161682893,26.0,156.68,156.66,7.6072136]
[1752161683078,26.0,156.68,156.67,7.5472136]
[1752161687598,26.0,156.68,156.67,0.7]
[1752161688401,6.41174456,156.7,156.67,0.7]
[1752161688698,26.0,156.68,156.67,7.5472136]
[1752161689288,26.0,156.68,156.67,0.7]
[1752161691600,32.38243553,156.68,156.67,0.7]
[1752161691799,32.38243553,156.68,156.66,7.6072136]
[1752161692376,26.0,156.68,156.66,7.6072136]
[1752161693180,32.38246622,156.68,156.66,7.6072136]
[1752161693704,32.38246622,156.68,156.66,0.76]
[1752161696181,0.69,156.67,156.66,0.06]
[1752161696398,7.5372136,156.67,156.66,0.06]
[1752161696586,24.32189757,156.67,156.66,0.06]
[1752161697377,30.70474048,156.67,156.66,0.06]
[1752161700988,30.70474048,156.67,156.66,1e-08]
[1752161702082,63.16474048,156.67,156.66,1e-08]
[1752161705188,42.78468397,156.63,156.62,0.2]
[1752161705489,82.09189757,156.63,156.62,0.2]
[1752161705691,82.78189757,156.63,156.62,0.2]
[1752161706207,89.16637053,156.63,156.62,0.2]
[1752161708911,89.16637053,156.63,156.62,1e-08]
[1752161709709,89.16637053,156.63,156.61,1e-08]
[1752161710012,24.33189757,156.62,156.61,1e-08]
[1752161710890,30.71677817,156.62,156.61,1e-08]
[1752161713626,145.7,156.61,156.57,0.2]
[1752161713798,23.63189757,156.59,156.57,0.2]
[1752161714511,24.33189757,156.59,156.57,0.2]
[1752161714901,30.7180014,156.59,156.57,0.2]
[1752161715396,23.8707878,156.59,156.57,0.2]
[1752161715606,13.23331743,156.59,156.58,0.82]
[1752161715912,6.38610383,156.59,156.58,0.82]
[1752161717409,13.23331743,156.59,156.58,0.82]
[1752161718708,13.23331743,156.59,156.58,0.1]
[1752161719013,13.93331743,156.59,156.58,0.1]
[1752161719233,30.7180014,156.59,156.58,0.1]
[1752161719513,89.1980014,156.59,156.58,0.1]
[1752161720095,88.4980014,156.59,156.58,0.1]
[1752161720298,89.1980014,156.59,156.58,0.1]
[1752161721089,63.1980014,156.59,156.58,0.1]
[1752161721731,63.1980014,156.59,156.58,1e-08]
[1752161727318,56.3507878,156.59,156.58,1e-08]
[1752161727525,63.1980014,156.59,156.58,1e-08]
[1752161729133,63.1980014,156.59,156.57,0.2]
[1752161729134,42.78468397,156.55,156.5,0.1]
[1752161729308,6.8472136,156.52,156.51,0.72]
[1752161729505,6.8472136,156.52,156.5,0.1]
[1752161730138,6.8472136,156.52,156.51,0.72]
[1752161730442,6.8472136,156.53,156.51,0.72]
[1752161730611,6.8472136,156.54,156.51,0.72]
[1752161731033,6.38855171,156.53,156.51,0.72]
[1752161731427,13.23576531,156.53,156.51,0.72]
[1752161731932,13.23576531,156.53,156.52,0.72]
[1752161732138,32.5,156.54,156.52,0.72]
[1752161732435,0.7,156.59,156.53,6.8472136]
[1752161732635,0.7,156.59,156.5,6.48969358]
[1752161732636,56.15189757,156.58,156.54,7.5672136]
[1752161732933,149.03034352,156.6,156.56,6.8472136]
[1752161733146,6.38541227,156.61,156.58,6.8472136]
[1752161733348,13.23262587,156.61,156.59,0.72]
[1752161735428,0.03,156.62,156.6,7.5672136]
[1752161735614,0.03,156.62,156.61,7.5672136]
[1752161735936,0.03,156.62,156.61,9.1057136]
[1752161736730,32.8772136,156.62,156.59,0.72]
[1752161736936,6.8472136,156.61,156.59,0.72]
[1752161737142,39.2620942,156.62,156.6,0.72]
[1752161737448,32.4148806,156.62,156.61,0.68]
[1752161737828,39.2620942,156.62,156.59,0.68]
[1752161738160,39.2620942,156.62,156.6,0.68]
[1752161738829,32.8772136,156.62,156.6,0.68]
[1752161739029,39.2621626,156.62,156.6,0.68]
[1752161739424,39.2621626,156.62,156.59,0.68]
[1752161739425,6.8472136,156.61,156.59,0.68]
[1752161741426,26.03,156.62,156.59,0.68]
[1752161741624,26.03,156.62,156.59,7.5272136]
[1752161741846,26.03,156.62,156.6,0.68]
[1752161742047,26.03,156.62,156.6,7.5272136]
[1752161742356,26.03,156.62,156.61,0.68]
[1752161744063,0.03,156.62,156.61,0.68]
[1752161744356,26.03,156.62,156.61,0.68]
[1752161746647,0.03,156.62,156.61,0.68]
[1752161749763,0.03,156.62,156.61,7.5272136]
[1752161750138,0.03,156.62,156.61,13.91250189]
[1752161750357,0.03,156.62,156.61,20.08890189]
[1752161753546,0.03,156.62,156.61,21.64670189]
[1752161758362,0.03,156.62,156.61,47.64670189]
[1752161759171,0.03,156.62,156.61,40.79948829]
[1752161759469,0.03,156.62,156.61,47.64670189]
[1752161760158,0.03,156.7,156.61,87.24182019]
[1752161760468,0.03,156.7,156.68,6.8472136]
[1752161760875,0.03,156.7,156.69,0.68]
[1752161761076,0.03,156.7,156.68,6.8472136]
[1752161761251,0.03,156.7,156.68,7.5272136]
[1752161761452,0.03,156.7,156.67,39.3672136]
[1752161761655,0.74,156.7,156.67,40.0472136]
[1752161762876,7.12162735,156.7,156.67,40.0472136]
[1752161763080,7.5572136,156.69,156.67,32.52]
[1752161763251,0.71,156.68,156.65,7.5272136]
[1752161763452,7.5572136,156.67,156.63,7.5272136]
[1752161763652,0.71,156.66,156.64,32.52]
[1752161765471,13.23047008,156.66,156.61,2.2378]
[1752161765800,6.8472136,156.63,156.58,7.06624739]
[1752161765950,0.71,156.65,156.58,7.5272136]
[1752161765951,7.5572136,156.62,156.58,7.5272136]
[1752161766151,7.5572136,156.62,156.58,40.0672136]
[1752161766387,0.71,156.62,156.58,13.91355642]
[1752161766560,0.71,156.62,156.59,0.68]
[1752161769479,0.71,156.62,156.59,0.74]
[1752161769996,0.74,156.62,156.59,7.5872136]
[1752161770984,0.03,156.62,156.61,6.8472136]
[1752161771187,0.03,156.62,156.61,40.0772136]
[1752161772285,0.03,156.62,156.61,46.46250189]
[1752161773415,0.03,156.62,156.6,39.4072136]
[1752161774089,0.03,156.62,156.6,40.0972136]
[1752161774602,7.5472136,156.61,156.59,0.06]
[1752161775109,0.7,156.6,156.59,0.06]
[1752161775288,7.5472136,156.6,156.59,0.06]
[1752161775714,24.33189757,156.6,156.59,0.06]
[1752161776412,30.71759361,156.6,156.59,0.06]
[1752161778784,13.23255015,156.61,156.59,0.06]
[1752161779218,13.93255015,156.61,156.59,0.06]
[1752161783211,0.7,156.6,156.59,0.06]
[1752161783603,7.5472136,156.6,156.59,0.06]
[1752161784514,24.33189757,156.6,156.59,0.06]
[1752161785504,30.71759361,156.6,156.59,0.06]
[1752161787194,23.87038001,156.6,156.59,0.06]
[1752161787495,23.17038001,156.6,156.59,0.06]
[1752161787707,13.23255164,156.61,156.59,0.06]
[1752161788109,6.8472136,156.61,156.59,0.06]
[1752161788816,13.93256927,156.61,156.59,0.06]
[1752161790017,13.23256927,156.61,156.59,0.06]
[1752161790517,6.8472136,156.6,156.59,0.06]
[1752161790725,7.08535567,156.61,156.59,0.06]
[1752161790894,13.93256927,156.61,156.59,0.06]
[1752161791321,6.8472136,156.6,156.59,0.06]
[1752161792115,26.03,156.62,156.59,7.5972136]
[1752161792116,0.03,156.62,156.59,7.5972136]
[1752161792419,0.03,156.62,156.61,6.8472136]
[1752161792998,0.03,156.62,156.61,7.5372136]
[1752161793826,0.03,156.62,156.61,0.69]
[1752161794010,0.03,156.62,156.6,13.23279863]
[1752161794211,0.03,156.62,156.6,13.92279863]
[1752161796299,0.03,156.62,156.61,7.5372136]
[1752161797429,0.03,156.62,156.61,13.23250189]
[1752161797631,0.03,156.62,156.61,13.91250189]
[1752161798014,0.03,156.62,156.61,15.41690189]
[1752161801006,0.03,156.62,156.61,47.99690189]
[1752161810733,0.03,156.62,156.61,6.8472136]
[1752161810935,0.75,156.62,156.59,0.06]
[1752161811144,6.8472136,156.6,156.59,0.06]
[1752161811511,7.5672136,156.6,156.59,0.06]
[1752161812109,32.25119361,156.6,156.59,0.06]
[1752161812928,25.40398001,156.6,156.59,0.06]
[1752161813112,15.46650964,156.6,156.59,0.06]
[1752161813513,8.61929604,156.6,156.59,0.06]
[1752161813738,15.46650964,156.6,156.59,0.06]
[1752161814421,9.0808136,156.6,156.59,0.06]
[1752161816548,15.46650964,156.6,156.59,0.06]
[1752161817345,8.61929604,156.6,156.59,0.06]
[1752161817646,15.46650964,156.6,156.59,0.06]
[1752161820436,13.95290964,156.6,156.59,0.06]
[1752161820741,0.72,156.61,156.59,0.06]
[1752161820956,0.03,156.62,156.59,6.9072136]
[1752161821132,0.03,156.62,156.59,7.5872136]
[1752161822332,0.03,156.62,156.59,6.9072136]
[1752161822333,0.75,156.62,156.59,6.9072136]
[1752161822644,0.72,156.61,156.59,6.9072136]
[1752161822832,0.72,156.6,156.59,0.06]
[1752161823530,0.75,156.62,156.59,0.06]
[1752161823844,0.75,156.62,156.59,7.5872136]
[1752161826744,0.75,156.62,156.59,13.97329961]
[1752161826938,0.75,156.62,156.59,7.5872136]
[1752161828130,0.03,156.62,156.61,6.8472136]
[1752161828329,0.03,156.62,156.61,7.5272136]
[1752161830256,0.03,156.62,156.61,13.91250189]
[1752161836072,0.03,156.62,156.61,46.49250189]
[1752161842754,0.03,156.62,156.61,33.26]
[1752161842949,0.03,156.62,156.61,40.1072136]
[1752161843458,0.03,156.62,156.61,46.49250189]
[1752161850554,0.03,156.62,156.61,38.96528829]
[1752161850752,0.03,156.62,156.61,32.58]
[1752161850979,0.03,156.62,156.61,46.49250189]
[1752161853783,0.03,156.62,156.61,39.64528829]
[1752161853979,0.03,156.62,156.61,46.49250189]
[1752161855981,0.03,156.62,156.61,46.55250189]
[1752161857583,0.03,156.62,156.61,39.02528829]
[1752161857790,0.03,156.62,156.61,45.87250189]
[1752161857966,0.03,156.62,156.61,46.57250189]
[1752161858165,0.03,156.62,156.61,46.47250189]
[1752161861503,0.03,156.62,156.61,39.3872136]
[1752161861993,0.03,156.62,156.61,45.77250189]
[1752161862991,0.03,156.62,156.61,6.44528829]
[1752161863176,0.03,156.62,156.61,45.77250189]
[1752161864795,0.7,156.62,156.61,39.3872136]
[1752161865173,0.7,156.62,156.61,32.54]
[1752161865369,0.7,156.62,156.61,39.3872136]
[1752161865370,0.03,156.62,156.61,39.3872136]
[1752161865567,0.03,156.62,156.61,45.77250189]
[1752161866695,0.03,156.62,156.61,46.47250189]
[1752161868487,0.7,156.62,156.61,39.3872136]
[1752161868894,0.03,156.62,156.61,39.3872136]
[1752161869667,0.7,156.62,156.61,39.3872136]
[1752161869870,0.7,156.62,156.61,32.54]
[1752161870068,0.7,156.62,156.61,39.3872136]
[1752161871375,0.7,156.62,156.61,32.54]
[1752161872574,0.7,156.62,156.61,39.3872136]
[1752161874201,7.0848806,156.62,156.61,0.06]
[1752161874370,13.9320942,156.62,156.61,0.06]
[1752161876794,0.03,156.62,156.61,0.06]
[1752161876970,0.03,156.62,156.61,7.6072136]
[1752161878003,0.03,156.62,156.61,6.9072136]
[1752161878670,0.03,156.62,156.61,0.06]
[1752161878671,0.7,156.62,156.61,0.06]
[1752161880417,0.03,156.62,156.61,7.6072136]
[1752161880721,0.03,156.62,156.61,0.76]
[1752161881010,0.03,156.62,156.61,13.99250189]
[1752161881202,0.03,156.62,156.61,7.14528829]
[1752161881377,0.03,156.62,156.61,13.99250189]
[1752161882280,0.03,156.62,156.61,13.29250189]
[1752161882906,0.03,156.62,156.61,13.99250189]
[1752161884413,0.03,156.62,156.61,46.47250189]
[1752161886187,0.7,156.62,156.61,32.54]
[1752161886512,7.5472136,156.62,156.61,0.06]
[1752161889034,0.7,156.62,156.61,0.06]
[1752161890799,7.5472136,156.62,156.61,0.06]
[1752161891000,13.9320942,156.62,156.61,0.06]
[1752161896924,0.03,156.62,156.61,0.06]
[1752161897920,0.69,156.62,156.61,0.06]
[1752161898293,7.5372136,156.62,156.61,0.06]
[1752161900227,13.9220942,156.62,156.61,0.06]
[1752161902730,0.69,156.62,156.61,0.06]
[1752161902926,7.5372136,156.62,156.61,0.06]
[1752161903921,13.9220942,156.62,156.61,0.06]
[1752161905232,30.70677817,156.62,156.61,0.06]
[1752161906630,32.24927817,156.62,156.61,0.06]
[1752161909525,25.40206457,156.62,156.61,0.06]
[1752161909704,32.24927817,156.62,156.61,0.06]
[1752161911618,25.40206457,156.62,156.61,0.06]
[1752161911822,32.24927817,156.62,156.61,0.06]
[1752161916815,29.79216599,156.62,156.61,0.06]
[1752161917022,55.79216599,156.62,156.61,0.06]
[1752161919134,51.40206457,156.62,156.61,0.06]
[1752161919338,55.79216599,156.62,156.61,0.06]
[1752161922536,54.24966599,156.62,156.61,0.06]
[1752161923641,30.42010142,156.62,156.61,0.06]
[1752161923839,0.03,156.62,156.61,0.75]
[1752161924228,0.03,156.62,156.61,11.52538971]
[1752161926943,0.03,156.62,156.61,13.98759917]
[1752161930526,0.03,156.62,156.61,7.13528829]
[1752161930724,0.03,156.62,156.61,0.06]
[1752161932522,7.55231088,156.62,156.61,0.06]
[1752161934144,6.88231088,156.62,156.61,0.06]
[1752161937254,13.93719148,156.62,156.61,0.06]
[1752161938940,30.72187545,156.62,156.61,0.06]
[1752161941576,0.03,156.62,156.61,0.75]
[1752161941748,0.03,156.62,156.61,7.60231088]
[1752161942862,0.03,156.62,156.61,0.06]
[1752161943067,7.55231088,156.62,156.61,0.06]
[1752161943959,13.93719148,156.62,156.61,0.06]
[1752161944156,13.26719148,156.62,156.61,0.06]
[1752161944471,6.88231088,156.62,156.61,0.06]
[1752161945364,0.03,156.62,156.61,0.75]
[1752161948260,0.03,156.62,156.61,0.06]
[1752161948772,6.88231088,156.62,156.61,0.06]
[1752161950662,0.03,156.62,156.61,0.06]
[1752161950858,13.98719148,156.62,156.61,0.06]
[1752161951383,7.1348806,156.62,156.61,0.06]
[1752161951558,30.77187545,156.62,156.61,0.06]
[1752161957595,63.25187545,156.62,156.61,0.06]
[1752161958066,64.80247545,156.62,156.61,0.06]
[1752161961070,16.78468397,156.6,156.59,0.06]
[1752161961269,56.11699485,156.6,156.59,0.06]
[1752161961469,56.83699485,156.6,156.59,0.06]
[1752161961761,63.22269089,156.6,156.59,0.06]
[1752161965378,26.0,156.57,156.56,0.06]
[1752161965579,65.33231088,156.57,156.56,0.06]
[1752161965778,66.05231088,156.57,156.56,0.06]
[1752161967792,72.43923046,156.57,156.56,0.06]
[1752161968777,101.05829732,156.57,156.56,1e-08]
[1752161968978,26.0,156.53,156.5,0.8]
[1752161969286,6.85231088,156.51,156.5,0.8]
[1752161970272,6.38871477,156.53,156.5,0.8]
[1752161970585,6.85231088,156.51,156.5,0.8]
[1752161972094,6.38871477,156.53,156.5,0.8]
[1752161972408,6.85231088,156.51,156.5,0.8]
[1752161973680,7.10871477,156.53,156.5,0.1]
[1752161973881,6.85231088,156.51,156.5,0.1]
[1752161975185,6.38928611,156.52,156.5,0.8]
[1752161975485,6.85231088,156.51,156.5,0.8]
[1752161976596,6.85231088,156.51,156.5,0.1]
[1752161977103,6.85231088,156.51,156.5,0.8]
[1752161978298,6.85231088,156.52,156.5,0.8]
[1752161978483,6.85231088,156.52,156.51,0.69]
[1752161979404,3.33126689,156.55,156.51,7.54231088]
[1752161979574,0.68,156.6,156.54,6.85231088]
[1752161979776,6.85231088,156.58,156.55,0.69]
[1752161979981,6.85231088,156.57,156.55,0.69]
[1752161980193,6.85231088,156.57,156.54,0.69]
[1752161980594,0.68,156.58,156.54,0.69]
[1752161980789,6.85231088,156.57,156.55,0.69]
[1752161981285,13.23894021,156.58,156.56,0.69]
[1752161981893,6.38662933,156.58,156.56,0.69]
[1752161982093,6.85231088,156.58,156.56,0.69]
[1752161983187,6.85231088,156.58,156.57,0.69]
[1752161983779,52.50125256,156.6,156.57,0.69]
[1752161984078,26.0,156.6,156.57,7.54231088]
[1752161984389,6.41513882,156.62,156.58,7.54231088]
[1752161984576,16.81468397,156.62,156.59,0.69]
[1752161984775,23.66699485,156.62,156.59,0.69]
[1752161984974,30.05188969,156.62,156.59,0.69]
[1752161986301,13.91762461,156.61,156.58,0.69]
[1752161986800,6.85231088,156.61,156.55,13.04746465]
[1752161986998,6.85231088,156.61,156.58,0.69]
[1752161987188,6.85231088,156.61,156.59,0.69]
[1752161988779,6.88231088,156.62,156.6,0.69]
[1752161988999,0.03,156.62,156.6,7.54231088]
[1752161989180,0.03,156.62,156.61,6.85231088]
[1752161989493,0.03,156.62,156.61,7.54231088]
[1752161989694,0.03,156.62,156.61,0.69]
[1752161993627,6.63868521,156.64,156.61,0.69]
[1752161993795,6.63868521,156.64,156.62,0.69]
[1752161995392,6.38409673,156.64,156.6,7.54231088]
[1752161995593,13.91640761,156.64,156.61,0.69]
[1752161995810,7.06409673,156.64,156.61,0.69]
[1752161996037,13.91640761,156.64,156.61,0.69]
[1752161998023,7.53231088,156.64,156.61,0.69]
[1752161998207,6.85231088,156.64,156.61,0.69]
[1752161998392,7.53231088,156.64,156.61,0.69]
[1752161999100,13.91650243,156.64,156.61,0.69]
[1752162000235,6.85231088,156.62,156.59,0.69]
[1752162000409,6.85231088,156.62,156.57,6.85231088]
[1752162000607,6.85231088,156.6,156.55,6.85231088]
[1752162000836,6.85231088,156.6,156.52,6.85231088]
[1752162000837,6.85231088,156.57,156.52,6.85231088]
[1752162001042,7.53231088,156.56,156.51,6.85231088]
[1752162001333,7.53231088,156.56,156.5,6.95231088]
[1752162001334,6.85231088,156.55,156.5,6.95231088]
[1752162002044,7.53231088,156.55,156.51,6.38936809]
[1752162002517,7.53231088,156.55,156.51,7.07936809]
[1752162003305,6.85231088,156.56,156.52,0.69]
[1752162004025,6.85231088,156.56,156.53,0.69]
[1752162004228,40.01231088,156.57,156.53,0.69]
[1752162004814,7.53231088,156.56,156.52,6.85231088]
[1752162005029,7.53231088,156.56,156.52,7.54231088]
[1752162005320,7.53231088,156.56,156.52,13.93088553]
[1752162007440,7.53231088,156.56,156.52,13.99088553]
[1752162007613,0.68,156.56,156.52,13.99088553]
[1752162007938,7.53231088,156.56,156.52,13.99088553]
[1752162008321,7.53231088,156.56,156.53,0.68]
[1752162008519,7.53231088,156.56,156.52,13.30088553]
[1752162008725,7.53231088,156.56,156.52,13.98088553]
[1752162008922,0.68,156.56,156.52,13.98088553]
[1752162009125,7.53231088,156.56,156.52,13.98088553]
[1752162009628,7.53231088,156.56,156.52,7.12857465]
[1752162009837,7.53231088,156.56,156.52,13.98088553]
[1752162011220,7.53231088,156.56,156.53,0.68]
[1752162011841,6.85231088,156.56,156.53,0.68]
[1752162012143,32.48,156.57,156.53,6.85231088]
[1752162012313,4.00851535,156.6,156.56,13.23933198]
[1752162012638,0.68,156.6,156.56,13.91933198]
[1752162013240,0.68,156.59,156.55,13.2398682]
[1752162013543,6.85231088,156.58,156.54,13.2403738]
[1752162013715,0.68,156.57,156.54,13.2403738]
[1752162014228,0.68,156.57,156.54,13.9203738]
[1752162014549,6.85231088,156.58,156.54,13.9203738]
[1752162014550,6.85231088,156.58,156.54,13.2403738]
[1752162014736,13.91861138,156.59,156.55,7.53231088]
[1752162015127,7.53231088,156.59,156.55,7.53231088]
[1752162015329,13.91852773,156.59,156.55,7.53231088]
[1752162015539,0.68,156.58,156.55,7.53231088]
[1752162015731,0.68,156.58,156.55,0.68]
[1752162015932,0.68,156.58,156.54,13.2403738]
[1752162016120,0.68,156.58,156.54,13.9203738]
[1752162018332,6.85231088,156.59,156.55,0.68]
[1752162018536,6.85231088,156.59,156.56,0.68]
[1752162018738,13.91819099,156.6,156.56,0.68]
[1752162019237,0.68,156.59,156.56,0.68]
[1752162020252,0.68,156.59,156.55,13.91984344]
[1752162020456,7.53231088,156.59,156.55,13.91984344]
[1752162021051,0.68,156.58,156.54,13.24031607]
[1752162021350,0.68,156.58,156.54,13.92031607]
[1752162027663,0.68,156.58,156.54,13.92041953]
[1752162028263,7.06656487,156.58,156.54,7.53231088]
[1752162028472,7.06656487,156.58,156.54,13.92041682]
[1752162029346,7.53231088,156.58,156.54,13.92041682]
[1752162029553,0.68,156.59,156.55,7.53231088]
[1752162029871,7.53231088,156.59,156.55,7.53231088]
[1752162030175,0.68,156.58,156.55,7.53231088]
[1752162030835,0.68,156.58,156.53,6.85231088]
[1752162030836,0.68,156.57,156.53,6.85231088]
[1752162031150,7.53231088,156.57,156.52,6.91231088]
[1752162031345,0.68,156.56,156.53,0.68]
[1752162032052,0.68,156.56,156.53,7.53231088]
[1752162035446,13.23928779,156.57,156.53,7.53231088]
[1752162035646,13.91928779,156.57,156.53,7.53231088]
[1752162037349,0.68,156.56,156.53,7.53231088]
[1752162039862,0.68,156.56,156.52,13.98110856]
[1752162040071,7.06735937,156.56,156.52,7.59231088]
[1752162040274,7.06735937,156.56,156.52,13.98118813]
[1752162040769,0.68,156.56,156.52,13.98118813]
[1752162041354,0.68,156.56,156.53,0.68]
[1752162042860,7.50231088,156.55,156.52,0.06]
[1752162043774,0.65,156.55,156.52,0.06]
[1752162043947,6.38773991,156.55,156.52,0.06]
[1752162044269,0.65,156.54,156.52,0.06]
[1752162045766,46.36980027,156.56,156.52,0.74]
[1752162046076,46.36980027,156.56,156.52,6.91231088]
[1752162046368,46.36980027,156.56,156.53,0.68]
[1752162047275,46.36980027,156.56,156.52,7.59231088]
[1752162047773,39.51748939,156.56,156.52,7.59231088]
[1752162048084,46.36980027,156.56,156.52,7.59231088]
[1752162048678,6.85231088,156.53,156.52,0.06]
[1752162048850,39.33231088,156.53,156.52,0.06]
[1752162049046,39.98231088,156.53,156.52,0.06]
[1752162049648,46.37086259,156.53,156.52,0.06]
[1752162052373,32.48,156.53,156.52,0.06]
[1752162053866,33.13,156.53,156.52,0.06]
[1752162055264,32.48,156.53,156.52,0.06]
[1752162056358,0.03,156.54,156.52,7.59231088]
[1752162056570,0.03,156.54,156.53,7.53231088]
[1752162057978,0.03,156.54,156.53,13.92086259]
[1752162061061,0.03,156.54,156.53,22.8858585]
[1752162061458,0.03,156.54,156.53,39.67054247]
[1752162061664,0.03,156.54,156.53,63.18554656]
[1752162062257,1e-08,156.54,156.53,79.00012372]
[1752162062466,1e-08,156.54,156.53,72.14781284]
[1752162063168,1e-08,156.54,156.53,63.18554656]
[1752162064168,1e-08,156.54,156.53,56.33323568]
[1752162064368,1e-08,156.54,156.53,55.3387601]
[1752162064882,6.41419509,156.64,156.54,16.78468397]
[1752162065182,7.06419509,156.64,156.61,6.85231088]
[1752162065386,0.65,156.63,156.61,6.85231088]
[1752162066076,0.65,156.63,156.6,6.38558127]
[1752162066386,0.65,156.63,156.61,6.85231088]
[1752162071596,0.65,156.63,156.61,13.23756037]
[1752162071777,0.75,156.64,156.61,13.23756037]
[1752162071980,0.75,156.64,156.62,6.85231088]
[1752162072299,0.03,156.64,156.63,6.85231088]
[1752162072465,0.75,156.64,156.63,6.85231088]
[1752162072668,0.03,156.64,156.62,6.85231088]
[1752162073072,0.75,156.64,156.62,6.85231088]
[1752162073272,0.72,156.63,156.62,6.85231088]
[1752162073774,0.72,156.63,156.6,6.38554863]
[1752162074086,0.72,156.62,156.61,6.85231088]
[1752162074270,0.72,156.63,156.61,6.85231088]
[1752162074972,0.72,156.62,156.6,13.23785951]
[1752162075165,6.41408251,156.64,156.6,6.85231088]
[1752162075370,0.72,156.61,156.6,6.85231088]
[1752162075572,0.72,156.63,156.6,6.85231088]
[1752162075891,0.72,156.62,156.6,6.85231088]
[1752162076268,0.72,156.62,156.6,13.2379918]
[1752162077194,0.72,156.63,156.6,13.2379918]
[1752162078366,0.03,156.64,156.6,13.9379918]
[1752162078566,0.75,156.64,156.61,6.85231088]
[1752162079587,0.03,156.64,156.61,7.55231088]
[1752162079767,0.75,156.64,156.61,7.55231088]
[1752162079973,0.72,156.63,156.61,6.85231088]
[1752162080676,0.72,156.63,156.61,13.23747818]
[1752162081676,0.72,156.63,156.61,6.85231088]
[1752162082872,0.72,156.63,156.61,13.23759554]
[1752162083296,0.03,156.64,156.61,13.23759554]
[1752162083501,0.75,156.64,156.61,13.23759554]
[1752162084798,0.03,156.64,156.61,6.38528466]
[1752162084999,0.72,156.63,156.61,6.38528466]
[1752162086178,7.60231088,156.64,156.61,6.38528466]
[1752162087090,0.75,156.64,156.61,13.23759554]
[1752162089202,0.72,156.63,156.6,13.23791228]
[1752162089408,0.72,156.63,156.6,13.93791228]
[1752162089810,0.72,156.63,156.6,6.85231088]
[1752162090003,7.57231088,156.63,156.59,6.85231088]
[1752162090205,0.72,156.62,156.59,6.85231088]